Cogmind - Beta 13 @@@ ROGUE MODE // 2024.05.02 @ 09:17:36 Player: adenochrome Result: Core destroyed Performance ------------- Evolutions (2) 1000 Regions Visited (7) 1400 Robots Destroyed (44) 220 Value Destroyed (1306) 1306 Prototype IDs (27) 540 Alien Tech Used (0) 0 Bonus (300) 300 TOTAL SCORE: 4766 Bonus ------- Aligned with FarCom 300 Cogmind --------- Core Integrity 0/550 Matter 300/300 Energy 99/100 System Corruption 0% Temperature Cool (0) Movement Core (50) Location -8/Materials Parts ------- > --- POWER (1) -------- (None) > --- PROPULSION (3) --- (None) > --- UTILITY (5) ------ (None) > --- WEAPON (2) ------- (None) > --- INVENTORY (5) ---- Flight Unit VTOL Module Small Storage Unit Reaction Control System Hacking Suite Peak State ------------ > --- POWER ------------ Cooled Ion Engine > --- PROPULSION ------- Aluminum Leg Improved Aluminum Leg VSS Leg > --- UTILITY ---------- Improved Heat Sink Large Storage Unit Improved Signal Interpreter Hardened Light Armor Plating Hacking Suite > --- WEAPON ----------- Beam Rifle Ion Cannon > --- INVENTORY -------- Improved Ion Engine Light Nuclear Core Flight Unit Flight Unit Flight Unit VTOL Module Small Storage Unit Advanced Weight Redist. System Improved Signal Interpreter Reaction Control System Hacking Suite System Shield Trap Reconfigurator Mini Grenade Launcher Mining Claw [Rating: 29] Favorites ----------- Power Cooled Ion Engine Engine Cooled Ion Engine Propulsion Aluminum Leg Leg Aluminum Leg Utility Large Storage Unit Device Improved Heat Sink Storage Large Storage Unit Processor Targeting Computer Hackware Hacking Suite Protection Light Armor Plating Weapon Beam Rifle Energy Gun Beam Rifle Energy Cannon Ion Cannon Ballistic Gun Light Assault Rifle Launcher Mini Grenade Launcher Slashing Weapon Mining Claw Build | -11 -10 -10 -9 -9 -9 -8 -8 ------- Run | Yrd Mat Min Mat Min Exi Min Mat Slots Evolved 4 | . . . 2 . . . 2 Power . | . . . . . . . . Propulsion 1 | . . . . . . . 1 Utility 3 | . . . 2 . . . 1 Weapon . | . . . . . . . . Parts Attached 41 | 6 5 2 9 1 . . 18 Power 2 | 1 . . 1 . . . . Engine 2 | 1 . . 1 . . . . Core . | . . . . . . . . Reactor . | . . . . . . . . Propulsion 13 | 2 1 1 3 . . . 6 Treads . | . . . . . . . . Leg 13 | 2 1 1 3 . . . 6 Wheel . | . . . . . . . . Hover . | . . . . . . . . Flight . | . . . . . . . . Utility 10 | 1 2 . 2 . . . 5 Device 3 | . . . 1 . . . 2 Storage 2 | 1 1 . . . . . . Processor 2 | . 1 . . . . . 1 Hackware 1 | . . . . . . . 1 Protection 2 | . . . 1 . . . 1 Artifact . | . . . . . . . . Weapon 16 | 2 2 1 3 1 . . 7 Energy Gun 5 | . 1 1 2 . . . 1 Energy Cannon 3 | . . . . . . . 3 Ballistic Gun 3 | 2 . . 1 . . . . Ballistic Cannon . | . . . . . . . . Launcher 4 | . 1 . . 1 . . 2 Special Weapon . | . . . . . . . . Impact Weapon . | . . . . . . . . Slashing Weapon 1 | . . . . . . . 1 Piercing Weapon . | . . . . . . . . Special Melee Weapon . | . . . . . . . . Unidentified Prototypes . | . . . . . . . . Parts Lost 18 | . . . 1 . . . 17 Power 2 | . . . . . . . 2 Propulsion 7 | . . . . . . . 7 Utility 4 | . . . . . . . 4 Weapon 5 | . . . 1 . . . 4 Highest Loss Streak 13 | . . . 1 . . . 13 To Critical Strikes . | . . . . . . . . Average Slot Usage (%) 91 | . 86 100 88 92 100 100 91 Engine 10 | . 14 14 11 11 11 11 8 Leg 23 | . 28 28 22 22 22 22 24 Device 8 | . . . 10 11 11 11 9 Storage 10 | . 14 14 11 11 11 11 8 Processor 9 | . 1 14 11 11 11 11 9 Hackware 1 | . . . . . . . 4 Protection 5 | . . . 1 11 11 11 8 Energy Gun 12 | . 7 14 20 11 11 11 8 Energy Cannon 1 | . . . . . . . 3 Ballistic Gun 3 | . 20 14 . . . . . Launcher 3 | . 1 . . 4 11 11 4 Naked Turns 4 | . . . . . . . 4 Heaviest Build 44 | 12 29 29 38 36 36 36 44 Greatest Support 35 | 20 20 20 23 23 23 23 35 Greatest Overweight (x) 2 | 2 1 1 1 1 1 1 2 Average Overweight (x) . | . . 1 1 1 1 1 . Largest Inventory Capacity 15 | 8 15 15 15 15 15 15 15 Average Capacity 14 | 7 14 15 15 15 15 15 14 Most Carried 15 | 4 14 15 15 15 15 15 15 Average Carried 13 | 2 9 13 14 14 14 14 14 Final Capacity 15 | 8 15 15 15 15 15 15 5 Final Carried 15 | 4 14 13 14 14 15 15 5 Class Distribution -------------------- 78% | Scavenger-Mutant 21% | Mutant Dominant Class ---------------- Mutant | -10/Materials Mutant | -10/Mines Scavenger-Mutant | -9/Materials Scavenger-Mutant | -9/Mines Scavenger-Mutant | -9/Exiles Scavenger-Mutant | -8/Mines Scavenger-Mutant | -8/Materials Resources | -11 -10 -10 -9 -9 -9 -8 -8 ----------- Run | Yrd Mat Min Mat Min Exi Min Mat Matter Collected 679 | 260 102 27 110 30 . . 150 Remotely . | . . . . . . . . Salvage Created 1525 | . 202 78 587 30 . . 628 Parts 90 | . 21 6 30 3 . . 30 Haulers Intercepted 2 | . . . 2 . . . . Recyclers Shooed 2 | . . . 1 . . . 1 Parts Field Recycled . | . . . . . . . . Retrieved Matter . | . . . . . . . . Parts Self-Destructed . | . . . . . . . . Prevented . | . . . . . . . . Kills | -11 -10 -10 -9 -9 -9 -8 -8 ------- Run | Yrd Mat Min Mat Min Exi Min Mat Combat Hostiles Destroyed 33 | . 7 2 8 3 . . 13 Guns 19 | . 4 2 8 1 . . 4 Cannons 4 | . . . . . . . 4 AOE 9 | . 3 . . 2 . . 4 Classes Destroyed 9 | . 3 . 5 . . . 1 Worker 2 | . . . 1 . . . 1 Hauler 2 | . . . 2 . . . . Recycler 1 | . . . . . . . 1 Operator 2 | . 1 . . . . . 1 Watcher 4 | . . . 3 . . . 1 Swarmer 9 | . 3 . . 3 . . 3 Grunt 14 | . 4 2 3 . . . 5 Duelist 2 | . . . 1 . . . 1 Sentry 8 | . . . 4 . . . 4 Best Kill Streak 4 | . 3 2 4 2 . . 3 Combat Bots Only 3 | . 3 2 2 2 . . 3 Max Kills in Single Turn 3 | . 2 1 1 2 . . 3 Gunslinging . | . . . . . . . . Exploded 2 | . 2 . . 2 . . 2 Melee . | . . . . . . . . Uniques/NPCs Destroyed . | . . . . . . . . Combat | -11 -10 -10 -9 -9 -9 -8 -8 -------- Run | Yrd Mat Min Mat Min Exi Min Mat Hostile Shots Fired 218 | . 35 8 37 6 . . 132 Missed 60 | . 11 . 13 3 . . 33 Damage Taken 2339 | . 271 116 369 25 . . 1558 Core 757 | . 86 14 97 6 . . 554 Absorbed by Shields . | . . . . . . . . Core Remaining (%) 78 | 100 . 60 . . . 74 . Volleys Fired 138 | . 26 7 39 4 . . 62 Largest 2 | . 2 2 2 2 . . 2 Hottest 121 | . 60 60 121 86 . . 116 Shots Fired 219 | . 50 14 70 6 . . 79 Gun 198 | . 48 14 70 4 . . 62 Cannon 13 | . . . . . . . 13 Launcher 8 | . 2 . . 2 . . 4 Special . | . . . . . . . . Kinetic 44 | . 32 7 5 . . . . Thermal 167 | . 16 7 65 4 . . 75 Explosive 8 | . 2 . . 2 . . 4 Electromagnetic . | . . . . . . . . Robot Hit Streak 13 | . 6 7 13 1 . . 11 Robot Miss Streak 4 | . 4 1 2 3 . . 2 Penetration Max . | . . . . . . . . Secondary Targets . | . . . . . . . . Shots Hit Robots 156 | . 31 10 53 2 . . 60 Core Hits 80 | . 17 6 21 3 . . 33 Critical Kills 1 | . 1 . . . . . . Critical Parts Destroyed . | . . . . . . . . Critical Strikes 11 | . 1 . 4 . . . 6 Burn 10 | . . . 4 . . . 6 Destroy 1 | . 1 . . . . . . Melee Attacks 5 | . . . . . . . 5 Impact . | . . . . . . . . Slashing 5 | . . . . . . . 5 Piercing . | . . . . . . . . Sneak Attacks . | . . . . . . . . Combat Hostiles . | . . . . . . . . Follow-up Attacks . | . . . . . . . . Damage Inflicted 2954 | . 494 96 832 168 . . 1364 Guns 1947 | . 282 96 832 15 . . 722 Cannons 213 | . . . . . . . 213 Explosions 772 | . 212 . . 153 . . 407 Melee . | . . . . . . . . Ramming 22 | . . . . . . . 22 Kinetic 256 | . 138 38 80 . . . . Thermal 1904 | . 144 58 752 15 . . 935 Explosive 772 | . 212 . . 153 . . 407 Electromagnetic . | . . . . . . . . Impact . | . . . . . . . . Slashing . | . . . . . . . . Piercing . | . . . . . . . . Highest Corruption . | . . . . . . . . Average Corruption . | . . . . . . . . Corruption Purged . | . . . . . . . . Corruption Blocked . | . . . . . . . . Overload Shots . | . . . . . . . . Overflow Damage 24 | . . . . 1 . . 23 Projectiles . | . . . . . . . . Explosions 24 | . . . . 1 . . 23 Melee . | . . . . . . . . Knockbacks . | . . . . . . . . Impact . | . . . . . . . . Kinetic . | . . . . . . . . Secondary . | . . . . . . . . Self-Inflicted Damage 238 | . . . . . . . 238 Shots 4 | . . . . . . . 4 Rammed 3 | . . . . . . . 3 Targets Rammed 11 | . . . . . . . 11 Kicked 8 | . . . . . . . 8 Crushed . | . . . . . . . . Highest Temperature 106 | . 88 106 75 . . . 48 Average Temperature 26 | . 32 64 15 . . . 22 Received Heat Transfer 534 | . 147 66 114 . . . 207 Siege Activations . | . . . . . . . . Robots Corrupted . | . . . . . . . . Combat Hostiles . | . . . . . . . . Parts Fried . | . . . . . . . . Impact Corruptions . | . . . . . . . . Robots Melted 1 | . . . . . . . 1 Combat Hostiles 1 | . . . . . . . 1 Parts Melted 12 | . . . 3 . . . 9 Heat Transferred 5186 | . 325 125 2109 37 . . 2590 Parts Sabotaged . | . . . . . . . . Parts Stolen . | . . . . . . . . Parts Stripped . | . . . . . . . . Power Chain Reactions . | . . . . . . . . Alert | -11 -10 -10 -9 -9 -9 -8 -8 ------- Run | Yrd Mat Min Mat Min Exi Min Mat Peak Influence 239 | . 226 65 138 121 . . 239 Initial 25 | . . 15 25 21 . . . Average 55 | . 80 56 61 51 . . 56 Maximum Alert Level 1 | . 1 . . . . . 1 Low Security (%) 97 | 100 91 100 100 100 . 100 96 Level 1 2 | . 8 . . . . . 3 Level 2 . | . . . . . . . . Level 3 . | . . . . . . . . Level 4 . | . . . . . . . . Level 5 . | . . . . . . . . High Security . | . . . . . . . . Max Security . | . . . . . . . . Squads Dispatched 4 | . 1 . . . . . 3 Investigation . | . . . . . . . . Extermination . | . . . . . . . . Reinforcement 4 | . 1 . . . . . 3 Assault . | . . . . . . . . Garrison . | . . . . . . . . Intercept . | . . . . . . . . Searches Triggered . | . . . . . . . . Construction Impeded 1 | . . . . . . . 1 Haulers Reinforced . | . . . . . . . . Active Scanning Responses . | . . . . . . . . Cargo Convoy Interrupts . | . . . . . . . . Stealth | -11 -10 -10 -9 -9 -9 -8 -8 --------- Run | Yrd Mat Min Mat Min Exi Min Mat Distress Signals 7 | . 2 . 1 . . . 4 Communications Jammed . | . . . . . . . . Distress Signals . | . . . . . . . . Times Spotted 85 | . 12 2 17 7 . . 47 Peak Tracking Total 12 | . 4 2 3 4 . . 12 Tactical Retreats 8 | . . . 1 1 . . 6 Traps | -11 -10 -10 -9 -9 -9 -8 -8 ------- Run | Yrd Mat Min Mat Min Exi Min Mat Traps Triggered . | . . . . . . . . Indirectly . | . . . . . . . . Trap Hack Attempts . | . . . . . . . . Triggered . | . . . . . . . . Disarmed . | . . . . . . . . Reprogrammed . | . . . . . . . . Reused . | . . . . . . . . Traps Extracted . | . . . . . . . . Installed . | . . . . . . . . Triggered . | . . . . . . . . Machines | -11 -10 -10 -9 -9 -9 -8 -8 ---------- Run | Yrd Mat Min Mat Min Exi Min Mat Machines Disabled 7 | . 2 . . . . . 5 Max in Single Turn 1 | . 1 . . . . . 1 Machines Repaired . | . . . . . . . . Machines Dismantled . | . . . . . . . . Machines Sabotaged . | . . . . . . . . Overloaded Fab Kills . | . . . . . . . . Hacking | -11 -10 -10 -9 -9 -9 -8 -8 --------- Run | Yrd Mat Min Mat Min Exi Min Mat Machines Accessed 14 | . 3 . 5 . 1 . 5 Terminals 10 | . 3 . 3 . . . 4 Fabricators . | . . . . . . . . Repair Stations . | . . . . . . . . Recycling Units 2 | . . . 1 . . . 1 Scanalyzers 1 | . . . 1 . . . . Garrison Access . | . . . . . . . . Total Hacks 39 | . 7 . 20 . 1 . 11 Successful 22 | . 5 . 11 . 1 . 5 Failed 17 | . 2 . 9 . . . 6 Catastrophic 6 | . . . 4 . . . 2 Database Lockouts . | . . . . . . . . Manual 13 | . 1 . 5 . 1 . 6 Terminals 24 | . 7 . 7 . . . 10 Fabricators . | . . . . . . . . Repair Stations . | . . . . . . . . Recycling Units 3 | . . . 2 . . . 1 Scanalyzers 11 | . . . 11 . . . . Garrison Access . | . . . . . . . . Terminal Hacks 12 | . 5 . 2 . 1 . 4 Robot Analysis 1 | . 1 . . . . . . Prototype ID Bank 2 | . 2 . . . . . . Level Access Points 1 | . . . . . . . 1 Alert Level 1 | . . . . . . . 1 Locate Traps 2 | . . . 1 . . . 1 Maintenance Status 1 | . 1 . . . . . . Hauler Manifests 2 | . 1 . 1 . . . . Zone Layout 1 | . . . . . . . 1 Derelict Proto ID Bank 1 | . . . . . 1 . . Fabricator Hacks . | . . . . . . . . Repair Station Hacks . | . . . . . . . . Recycling Unit Hacks 1 | . . . . . . . 1 Report Inventory 1 | . . . . . . . 1 Scanalyzer 9 | . . . 9 . . . . Insert Component 4 | . . . 4 . . . . Analyze 5 | . . . 5 . . . . Garrison Access Hacks . | . . . . . . . . Unauthorized Hacks . | . . . . . . . . Terminals . | . . . . . . . . Fabricators . | . . . . . . . . Repair Stations . | . . . . . . . . Recycling Units . | . . . . . . . . Scanalyzers . | . . . . . . . . Garrison Access . | . . . . . . . . Data Cores Recovered . | . . . . . . . . Used . | . . . . . . . . Hacking Detections 11 | . 3 . 4 . . . 4 Full Trace Events 2 | . 1 . 1 . . . . Feedback Events . | . . . . . . . . Feedback Blocked . | . . . . . . . . Robot Schematics Acquired . | . . . . . . . . Robots Built . | . . . . . . . . Authchips . | . . . . . . . . Time . | . . . . . . . . Total Robot Build Rating . | . . . . . . . . Part Schematics Acquired 3 | . . . 3 . . . . Parts Built . | . . . . . . . . Authchips . | . . . . . . . . Time . | . . . . . . . . Total Part Build Rating . | . . . . . . . . Parts Repaired . | . . . . . . . . Time . | . . . . . . . . Parts Recycled . | . . . . . . . . Recycled Matter . | . . . . . . . . Retrieved Matter . | . . . . . . . . Retrieved Components . | . . . . . . . . Parts Scanalyzed 3 | . . . 3 . . . . Part Schematics Acquired 3 | . . . 3 . . . . Parts Damaged . | . . . . . . . . Bothacking | -11 -10 -10 -9 -9 -9 -8 -8 ------------ Run | Yrd Mat Min Mat Min Exi Min Mat Used RIF Installer . | . . . . . . . . Robots Hacked . | . . . . . . . . Non-combat . | . . . . . . . . Combat . | . . . . . . . . Robot Hacks Applied . | . . . . . . . . Relay Couplers Released . | . . . . . . . . Fabnet Peak Effective % . | . . . . . . . . Robots Rewired . | . . . . . . . . Allies Hacked . | . . . . . . . . Hacks Repelled . | . . . . . . . . Allies | -11 -10 -10 -9 -9 -9 -8 -8 -------- Run | Yrd Mat Min Mat Min Exi Min Mat Total Allies . | . . . . . . . . Largest Group . | . . . . . . . . Highest-Rated Group . | . . . . . . . . Highest-Rated Ally . | . . . . . . . . Total Orders . | . . . . . . . . Ally Attacks . | . . . . . . . . Total Damage . | . . . . . . . . Kills . | . . . . . . . . Allies Corrupted . | . . . . . . . . Allies Melted . | . . . . . . . . Intel | -11 -10 -10 -9 -9 -9 -8 -8 ------- Run | Yrd Mat Min Mat Min Exi Min Mat Robot Analysis Total 1 | . 1 . . . . . . Derelict Logs Recovered . | . . . . . . . . Drone Launches . | . . . . . . . . Drone Recoveries . | . . . . . . . . Exploration | -11 -10 -10 -9 -9 -9 -8 -8 ------------- Run | Yrd Mat Min Mat Min Exi Min Mat Turns Passed 4815 | 62 563 149 1260 690 415 283 1393 Spaces Moved 2167 | 45 250 65 520 331 215 136 605 Core 94 | 8 . . . . . . 86 Treads . | . . . . . . . . Legs 2073 | 37 250 65 520 331 215 136 519 Wheels . | . . . . . . . . Hover . | . . . . . . . . Flight . | . . . . . . . . Fastest Speed 50 | 50 120 190 190 190 190 190 50 Average Speed 181 | 109 187 190 190 190 190 190 166 Slowest Speed 270 | 150 190 190 190 190 190 190 270 Overloaded Moves . | . . . . . . . . Propulsion Burnouts . | . . . . . . . . Robots Hopped . | . . . . . . . . Cave-ins Triggered . | . . . . . . . . Exploration Rate (%) 39 | 3 43 14 50 59 61 43 41 Regions Visited 7 Branch Regions 4 Pre-discovered Areas . | . . . . . . . . Known Exits Taken . | . . . . . . . . Unknown Exits Taken 7 | 1 1 1 1 1 1 1 . Scrap Searched 2 | . . 1 . 1 . . . Spaces Dug . | . . . . . . . . Terrain Destroyed 73 | . 2 . . 19 . . 52 Melee . | . . . . . . . . Projectile . | . . . . . . . . AOE 73 | . 2 . . 19 . . 52 Terrain Rammed . | . . . . . . . . Walls Destroyed . | . . . . . . . . Machines Disabled . | . . . . . . . . Actions | -11 -10 -10 -9 -9 -9 -8 -8 --------- Run | Yrd Mat Min Mat Min Exi Min Mat Total 2812 | 54 298 79 728 387 222 162 882 Wait 388 | . 9 1 136 51 7 23 161 Move 2160 | 44 249 64 519 330 214 135 605 Hop . | . . . . . . . . Pick Up 36 | 4 8 1 10 1 1 2 9 Fast Attach 20 | 6 2 1 4 . . . 7 Attach 7 | . . . 1 1 . . 5 Detach 1 | . 1 . . . . . . Swap 14 | . 3 1 4 . . . 6 Drop 33 | . . 4 15 . . 2 12 Fire 138 | . 26 7 39 4 . . 62 Melee 5 | . . . . . . . 5 Ram 2 | . . . . . . . 2 Kick 8 | . . . . . . . 8 Crush . | . . . . . . . . Escape Stasis . | . . . . . . . . Rewire . | . . . . . . . . Trap . | . . . . . . . . Miscellaneous . | . . . . . . . . Route ------- -11/Scrapyard -10/Materials -10/Mines -9/Materials (discovered 3 exits: *Mat / [*Min] / [*Sto]) -9/Mines (discovered 2 exits: *Mat / *Exi) -9/Exiles -8/Mines -8/Materials (discovered 3 exits: Fac x3) History --------- Turn | Location | Event 14 | -11/Scrapyard | Discovered new exit (range 15) 63 | -11/Scrapyard | Entered Materials 271 | -10/Materials | Discovered new exit (range 14) 305 | -10/Materials | Build established: Mutant 626 | -10/Materials | Entered Mines 737 | -10/Mines | Discovered new exit (range 10) 775 | -10/Mines | Entered Materials 775 | -9/Materials | Evolved 2 slots: Utility x2 1176 | -9/Materials | Build established: Scavenger-Mutant 1742 | -9/Materials | Discovered new exit (range 16) 1966 | -9/Materials | Discovered new exit (range 9) 2017 | -9/Materials | Discovered new exit (range 9) 2035 | -9/Materials | Entered Mines 2054 | -9/Mines | Met a Derelict bent on vengeance 2070 | -9/Mines | Discovered new exit (range 13) 2127 | -9/Mines | Found a damaged Exp. Sensor Array with a note attached 2146 | -9/Mines | Found Prototype Device 2718 | -9/Mines | Deemed a non-threat by the Exiles lab entrance 2718 | -9/Mines | Discovered new exit (range 5) 2725 | -9/Mines | Entered Exiles 2775 | -9/Exiles | Met 8R-AWN 2805 | -9/Exiles | Met EX-HEX 2862 | -9/Exiles | Met EX-BIN 2892 | -9/Exiles | Aligned with FarCom system 2894 | -9/Exiles | Given EX-Vault access code 2938 | -9/Exiles | Opened EX-Vault 2955 | -9/Exiles | Found Trap Reconfigurator 2999 | -9/Exiles | Warned to stay clear of 0b10 Research branches 3053 | -9/Exiles | Met EX-DEC 3117 | -9/Exiles | Discovered new exit (range 14) 3140 | -9/Exiles | Left Exiles lab with Trap Reconfigurator 3140 | -9/Exiles | Entered Mines 3396 | -8/Mines | Discovered new exit (range 14) 3423 | -8/Mines | Entered Materials 3423 | -8/Materials | Evolved 2 slots: Propulsion x1, Utility x1 4083 | -8/Materials | Identified exit to Factory 4765 | -8/Materials | Core integrity fell below 50% 4802 | -8/Materials | Core integrity fell below 20% 4806 | -8/Materials | Lost 13 parts (2p5n2u4w) 4816 | -8/Materials | Core destroyed Last Messages --------------- 04758_ K-01 Serf collects debris. 04760_ Kicked U-05 Engineer. 04761_ K-01 Serf collects debris. 04762_ Aluminum Leg destroyed. 04763_ Slammed into U-05 Engineer. 04764_ K-01 Serf collects debris. 04768_ Slammed into U-05 Engineer. 04772_ Cld. Ion Engine destroyed. 04773_ Dropped Lrg. Storage Unit. 04773_ Flight Unit crushed and broken. 04773_ Lgt. Nuclear Core crushed and broken. 04773_ Flight Unit crushed and broken. 04773_ Trap Reconfigurator crushed and broken. 04775_ Hacking Suite destroyed. 04790_ ALERT: Suspicious intruders detected, dispatching Cutter reinforcements to area. 04804_ Knocked back. 04804_ C-17 Slicer knocked back. 04812_ Imp. Signal Interpreter severed. 04816_ Slammed into U-05 Engineer. Map ----- +----------------------------------------------------+ | ????????????# ??????????????????#?? ?????????# "" | | ????????????# ??#############?? #? ?????????# "" | | ??????????### ### = =#?? # ??????????# "" | | +######+###[ # """ = #? # ???????????# "" | | # """"" #? + ????????????# "" | | / """"" # #?????????????# | | # """"" /!# #?????????????# | | ????####### # "" %# #################+ | | ??????????## ## w %g%%=%/ | | ???????????# ##########/###########??# | | ???????????# # "T" [##!####?????????# ^ | | ???????????# +^ ##%# #?????????# | | ???????????# # ! [ #! # #?????????# """"" | | ???????????# ##########!#%##??######## """" | | ????######## # ########=###???# """ + ^ """"" | | ????# # w # "" #?#!#?????# """ # | | ????# # # ""S #?#*#?????# """ # ^ | | ????# # # "" #?#!#?????# /# ^ """"" | | ????# * + + #?# #?????# # """"" | | ????# # # #?# #?????# # """"" | | #???# # # #?# #?????######## | | ############ ########?# #????????????# | | #????????# #????????????# | | #????????# #????????????# #####/### | | #????????#u#????????????# #?# = | | ###+# # #############@##############%### | | # g#??# T + %+ """ | | # l##?# # ########+##### ### """ | | # """ """ #?# ! # #??# [ #??# #?# """ | | # """ """ ##?#########c#??# #??# #?# | | # """ """ #????#######s#### #??# #?####### | | # ######! ss c ## #??# #???????? | | " / s/ sc ## #### ###?????? | | ################## ## ## #?????? | | #? T #?????# #######+## T" #?????? | | #? #?????###########?????# " #?????? | | ? """ #??????# #????????# ## #?????? | | ? """"" #??????# #######??# ## #???### | | ? """"" #??????# # #?##+####+####### | | ? """"" #?###### """ # #?# ### | | ?? """ ### ## """ # #?# """ ! + | | ??? + ## """ # ### """ ### | | ?????????????????????????????????# """ ! # # | | ?????????????????????????????????# ! ### | | ?????????????????????????????????# #?? | | ?????????????????????????????????###############?? | | ?????????????????????????????????????????????????? | | ?????????????????????????????????????????????????? | | ?????????????????????????????????????????????????? | | ?????????????????????????????????????????????????? | +----------------------------------------------------+ Best States ------------- Heat Dissipation 55 Energy Generation 14 Energy Capacity 280 Matter Stores 300 Matter Capacity 300 Sight Range 16 Terrain Scan Density 10 Armor Coverage 150 Evasion (%) 55 Targeting Accuracy 5 Offensive Hacking 10 Item Schematics ----------------- Hacking Suite | -9/Materials | Scanalyzed Imp. Flight Unit | -9/Materials | Scanalyzed VTOL Module | -9/Materials | Scanalyzed Robot Schematics ------------------ None Fabricated ------------ Nothing Alien Tech Used ----------------- None Achievements -------------- None Challenges ------------ None Game ------ Seed SwarmFocalPick Manual? 0 Play Time 00:36:34 Cumulative 21.3 hours Start 2024.05.02 @ 08:41:13 End 2024.05.02 @ 09:17:36 Sessions 1 Manual Loads 0 Difficulty Rogue Special Mode None Game No. 29 Rogue 29 Adventurer 0 Explorer 0 Win Type - Total 0 Types 0/0/0/0/0/0/0/0/0 Lore% 22 Gallery% 24 Achievement% 25 Wizard Run 0 Options --------- Layout 0 ASCII 0 Keyboard 0 Movement Mouse Keybinds 0 Fullscreen 1 Font 18/SmallcapsGlow Map View 76x50 Zoom Use 42% Tactical HUD 1 Map Filters NONE Filters NONE Steam 1 RUN: b07a9522-c84a-4652-8541-e6c53309982a